[Event "Djerba Festival Open-A 2024"]
[Site "Djerba"]
[Date "2024.02.23"]
[Round "6.9"]
[White "Schenaoui Nabil"]
[Black "Kadi, Mohamed El Mouldi"]
[Result "1/2-1/2"]
[ECO "A48"]
[WhiteElo "2115"]
[BlackElo "2067"]
[Annotator "NA RC"]
[PlyCount "108"]
[EventDate "2024.02.18"]
[EventType "swiss"]
[EventCountry "TUN"]
[SourceTitle "playchess.com"]
[Source "ChessBase"]
[SourceQuality "1"]
[TimeControl "5400+30"]

1. d4 {[%emt 0:02:31]} Nf6 {[%emt 0:00:08]} 2. Bf4 {[%emt 0:00:08]} g6 {[%emt 0:00:09]} 3. e3 {[%emt 0:00:05]} Bg7 {[%emt 0:00:08]} 4. h3 {[%emt 0:00:10]} d6 {[%emt 0:00:15]} 5. Nf3 {[%emt 0:01:20]} O-O {[%emt 0:00:13]} 6. Bc4 {[%emt 0:00:22]} Nc6 {[%emt 0:02:12]} 7. d5 {[%emt 0:04:12]} Nb8 {[%emt 0:00:19]} 8. Nc3 {[%emt 0:00:35]} c6 {[%emt 0:00:24]} 9. dxc6 {[%emt 0:03:01]} bxc6 {[%emt 0:00:46]} 10. e4 {[%emt 0:02:14]} Qb6 {[%emt 0:09:39]} 11. Rb1 {[%emt 0:00:38]} Qb4 {[%emt 0:04:28]} 12. Nd2 {[%emt 0:01:55]} Be6 {[%emt 0:06:04]} 13. a3 {[%emt 0:07:19]} Qb7 {[%emt 0:01:36]} 14. Bxe6 {[%emt 0:06:12]} fxe6 {[%emt 0:00:01]} 15. Be3 {[%emt 0:01:33]} e5 $14 {[%emt 0:01:14]} 16. Nf3 {[%emt 0:03:13]} Na6 {[%emt 0:03:28]} 17. Qe2 {[%emt 0:05:21]} Nc7 {[%emt 0:00:14]} 18. O-O {[%emt 0:02:29]} Nh5 {[%emt 0:03:51]} 19. g3 {[%emt 0:02:01]} Kh8 {[%emt 0:01:54]} 20. Ng5 {[%emt 0:13:00]} d5 {[%emt 0:19:45]} 21. Na4 {[%emt 0:03:54]} h6 {[%emt 0:03:00]} 22. Nf3 {[%emt 0:00:15]} Qb5 {[%emt 0:00:38]} 23. Qxb5 {[%emt 0:03:28]} cxb5 {[%emt 0:01:47]} 24. Nh4 {[%emt 0:02:35]} bxa4 {[%emt 0:03:36]} 25. Nxg6+ {[%emt 0:00:39]} Kg8 {[%emt 0:00:30]} 26. Nxf8 {[%emt 0:00:35]} Kxf8 {[%emt 0:01:16]} 27. exd5 {[%emt 0:00:53]} Nxd5 {[%emt 0:00:09]} 28. Bc5 {[%emt 0:01:57]} Rc8 {[%emt 0:02:50]} 29. Bxa7 {[%emt 0:00:40]} Rxc2 {[%emt 0:04:13]} 30. Rfc1 {[%emt 0:00:29]} Rxc1+ {[%emt 0:02:33]} 31. Rxc1 {[%emt 0:00:01]} e4 {[%emt 0:00:58]} 32. Rd1 {[%emt 0:00:28]} e6 {[%emt 0:00:17]} 33. Bd4 {[%emt 0:00:21]} e3 {[%emt 0:04:45]} 34. Bxg7+ {[%emt 0:01:20]} Kxg7 {[%emt 0:02:33]} 35. fxe3 {[%emt 0:01:39]} Nxg3 {[%emt 0:02:57]} 36. Kh2 {[%emt 0:06:23]} Ne4 {[%emt 0:03:32]} 37. Rd4 {[%emt 0:02:59]} Nc5 {[%emt 0:00:12]} 38. e4 {[%emt 0:02:47]} Nf6 {[%emt 0:01:32]} 39. e5 {[%emt 0:01:36]} Nfd7 {[%emt 0:01:39]} 40. Rg4+ {[%emt 0:03:20]} Kf7 {[%emt 0:01:47]} 41. Rc4 {[%emt 0:02:34]} Kg6 {[%emt 0:00:16]} 42. Kg3 {[%emt 0:00:55]} Kf5 {[%emt 0:00:29]} 43. Rh4 {[%emt 0:01:23]} Nxe5 {[%emt 0:02:07]} 44. Rxh6 {[%emt 0:00:46]} Ned3 {[%emt 0:02:50]} 45. Kf3 {[%emt 0:01:40]} Kg5 {[%emt 0:01:34]} 46. Rh8 {[%emt 0:00:51]} Nxb2 {[%emt 0:01:27]} 47. h4+ {[%emt 0:00:35]} Kg6 {[%emt 0:01:44]} 48. Ke3 {[%emt 0:01:26]} e5 {[%emt 0:01:02]} 49. h5+ {[%emt 0:00:56]} Kg7 {[%emt 0:01:42]} 50. Rc8 {[%emt 0:00:23]} Nbd3 {[%emt 0:00:42]} 51. Rc6 {[%emt 0:01:09]} Kh7 {[%emt 0:00:10]} 52. h6 {[%emt 0:00:47]} Kg8 {[%emt 0:02:50]} 53. Rc7 {[%emt 0:00:25]} e4 {[%emt 0:00:21]} 54. Rg7+ {[%emt 0:00:55]} Kh8 {[%emt 0:02:44]} 1/2-1/2

[Event "Djerba Festival Open-A 2024"]
[Site "Djerba"]
[Date "2024.02.24"]
[Round "8.1"]
[White "Rudzinska, Michalina"]
[Black "Amdouni, Zoubaier"]
[Result "1-0"]
[ECO "B35"]
[WhiteElo "2241"]
[BlackElo "2209"]
[Annotator "TA"]
[PlyCount "103"]
[EventDate "2024.02.18"]
[EventType "swiss"]
[EventCountry "TUN"]
[SourceTitle "playchess.com"]
[Source "ChessBase"]
[SourceQuality "1"]
[TimeControl "5400+30"]

{[%evp 14,103,23,33,35,22,18,12,20,0,12,0,0,0,0,0,0,0,62,39,44,33,29,7,12,8,11,0,12,0,14,13,18,12,15,15,16,16,91,81,80,90,85,83,116,124,131,116,118,154,154,156,167,156,152,154,171,160,139,142,136,140,148,151,154,152,162,165,191,193,195,129,127,66,80,80,100,96,108,109,475,442,431,329,874,855,833,833,29970,29951,29977,29978]} 1. e4 {[%emt 0:01:16]} c5 {[%emt 0:06:35]} 2. Nf3 {[%emt 0:00:17]} Nc6 {[%emt 0:00:09]} 3. d4 {[%emt 0:00:11]} cxd4 {[%emt 0:00:12]} 4. Nxd4 {[%emt 0:00:09]} g6 {[%emt 0:01:19]} 5. Nc3 {[%emt 0:00:18]} Bg7 {[%emt 0:00:05]} 6. Be3 {[%emt 0:00:20]} Nf6 {[%emt 0:00:06]} 7. Bc4 {[%emt 0:00:11]} O-O {[%emt 0:00:06]} 8. Bb3 {[%emt 0:00:13]} Re8 {[%emt 0:00:16]} 9. Nxc6 {[%emt 0:00:49]} dxc6 {[%emt 0:01:55]} 10. O-O {[%emt 0:01:38]} Qc7 {[%emt 0:10:36] The position is equal.} 11. h3 {[%emt 0:06:21] Inhibits Ng4.} (11. Qf3 {looks sharper.} b5 12. a3 a5 13. h3) 11... e5 {[%emt 0:07:09]} 12. f4 {[%emt 0:15:50]} exf4 {[%emt 0:05:49]} 13. Bxf4 {[%emt 0:01:08]} Qb6+ {[%emt 0:03:20]} 14. Kh1 {[%emt 0:00:22]} Be6 $1 {[%emt 0:06:21]} (14... Nxe4 $2 15. Bxf7+ Kh8 16. Bxe8 $18) 15. Qf3 {[%emt 0:01:10]} Qa5 {[%emt 0:08:57]} (15... Nd7 $11) 16. Bh2 {[%emt 0:07:44]} Qh5 {[%emt 0:10:22]} 17. Bxe6 {[%emt 0:04:03]} fxe6 {[%emt 0:07:20]} 18. Qxh5 {[%emt 0:03:44]} (18. Qe3 {is interesting.} Qa5 19. Rad1 Rad8 20. Bd6) 18... gxh5 {[%emt 0:02:53]} 19. Rad1 {[%emt 0:03:06]} Rad8 {[%emt 0:03:03]} 20. Bg3 {[%emt 0:04:40]} Rxd1 {[%emt 0:06:56]} 21. Rxd1 {[%emt 0:00:10]} Re7 {[%emt 0:00:06]} 22. Rd8+ {[%emt 0:06:25]} Re8 {[%emt 0:03:01]} 23. Rd6 {[%emt 0:02:45]} Bf8 {[%emt 0:02:20]} 24. Rd3 {[%emt 0:00:42]} Be7 {[%emt 0:03:43]} 25. Bh4 {[%emt 0:16:44]} Nxe4 {[%emt 0:02:37]} 26. Nxe4 $16 {[%emt 0:00:18]} Bxh4 $11 {[%emt 0:00:02][%mdl 4096] Endgame. [#] KRB-KRN} 27. g3 $1 {[%emt 0:00:25]} Be7 {[%emt 0:00:19]} 28. Rd7 {[%emt 0:00:12]} Kf8 {[%emt 0:00:28]} 29. Rxb7 {[%emt 0:00:23] White is more active.} Rd8 {[%emt 0:02:15] [#]} 30. Kg2 $1 {[%emt 0:00:32]} (30. Rxa7 $6 Rd4 31. Nc3 h4 $14) 30... Rd4 {[%emt 0:01:39]} 31. Kf3 {[%emt 0:00:20]} Ra4 {[%emt 0:00:29]} 32. a3 {[%emt 0:00:52]} Ra6 {[%emt 0:01:33]} 33. Kf4 {[%emt 0:06:18]} Ra5 {[%emt 0:02:24]} 34. Rc7 {[%emt 0:01:12]} Rf5+ {[%emt 0:01:28]} 35. Ke3 {[%emt 0:00:05]} h4 {[%emt 0:00:05]} 36. g4 {[%emt 0:02:41]} (36. Rxa7 $6 hxg3 37. Ra8+ Kf7 38. Nxg3 Bg5+ 39. Ke2 Rf4 $16) 36... Rf1 {[%emt 0:01:03]} 37. Rxc6 {[%emt 0:00:36][%cal Oe3d4]} (37. Rxa7 $6 Rh1 $11) 37... Rh1 {[%emt 0:00:57]} 38. Nf2 {[%emt 0:00:12]} (38. Rxe6 $6 Rxh3+ 39. Kf4 Rh1 $11) 38... Rb1 {[%emt 0:00:04]} 39. b4 {[%emt 0:01:40]} (39. Rxe6 $2 Re1+ (39... Rxb2 40. Rc6 $14) 40. Kd3 Rxe6 $19) 39... Ra1 {[%emt 0:00:13]} 40. Rc3 {[%emt 0:02:23]} (40. Rxe6 $2 {too greedy.} Re1+ (40... Rxa3+ 41. Nd3 $14) 41. Kd3 Rxe6 $19) 40... a5 {[%emt 0:00:47]} 41. bxa5 {[%emt 0:05:42]} Bxa3 {[%emt 0:00:16]} 42. Rc6 {[%emt 0:01:51]} (42. Rc8+ $18 Ke7 43. Nd3) 42... Bc1+ $16 {[%emt 0:01:07]} 43. Kf3 {[%emt 0:01:02]} ({White should try} 43. Ke4 $16 {Nd3 is the strong threat.} Rxa5 44. Nd3 (44. Rxe6 Rc5 $11)) 43... Rxa5 $14 {[%emt 0:00:33]} 44. Rxe6 {[%emt 0:00:06]} Kf7 {[%emt 0:00:14]} 45. Rc6 {[%emt 0:00:18]} h5 {[%emt 0:01:08]} 46. Nd3 {[%emt 0:00:51]} Bg5 {[%emt 0:00:18][%mdl 8192] Loses the game.} (46... Ba3 $16 {is tougher.}) 47. gxh5 $18 {[%emt 0:00:34][%cal Bg4h5,Bh5h6,Bh6h7][%mdl 32] Black must now prevent Rc5.} Bf6 {[%emt 0:00:14]} 48. Rc7+ {[%emt 0:01:44]} Be7 $2 {[%emt 0:00:16]} (48... Kg8 49. Rc5 Ra6) 49. Nf4 {[%emt 0:00:30] aiming for h6.} Ke8 {[%emt 0:01:12]} 50. h6 {[%emt 0:00:30]} Ra6 {[%emt 0:00:33]} 51. h7 {[%emt 0:00:18]} Rh6 {[%emt 0:00:12] [#]} 52. Rxe7+ $1 {[%emt 0:00:09] Weighted Error Value: White=0.09 (flawless) /Black=0.39.  Loses game:     	---       	Black=1      Mistake:       	White=2     	Black=3      Inaccurate:     	---       	Black=1      OK:         	White=17    	Black=14     Best:        	White=5     	Black=2      Strong:       	White=2     	Black=1} 1-0

[Event "Djerba Festival Open-A 2024"]
[Site "Djerba"]
[Date "2024.02.24"]
[Round "8.2"]
[White "Defromont, Benjamin"]
[Black "Brahami, Lamine"]
[Result "1-0"]
[ECO "B92"]
[WhiteElo "2423"]
[BlackElo "2178"]
[Annotator "RC"]
[PlyCount "119"]
[EventDate "2024.02.18"]
[EventType "swiss"]
[EventCountry "TUN"]
[SourceTitle "playchess.com"]
[Source "ChessBase"]
[SourceQuality "1"]
[TimeControl "5400+30"]

1. e4 {[%emt 0:03:36]} c5 {[%emt 0:02:09]} 2. Nf3 {[%emt 0:00:38]} d6 {[%emt 0:00:33]} 3. d4 {[%emt 0:00:24]} cxd4 {[%emt 0:00:19]} 4. Nxd4 {[%emt 0:00:06]} Nf6 {[%emt 0:00:05]} 5. Nc3 {[%emt 0:00:09]} a6 {[%emt 0:00:27]} 6. Be2 {[%emt 0:00:20]} e5 {[%emt 0:00:51]} 7. Nb3 {[%emt 0:00:22]} Be7 {[%emt 0:03:20]} 8. Be3 {[%emt 0:00:28]} Be6 {[%emt 0:03:08]} 9. Nd5 {[%emt 0:00:37]} Nxd5 {[%emt 0:06:03]} 10. exd5 {[%emt 0:00:26]} Bf5 {[%emt 0:00:18]} 11. Qd2 {[%emt 0:00:28]} Nd7 {[%emt 0:02:08]} 12. Na5 {[%emt 0:00:15]} Qc7 {[%emt 0:06:49]} 13. c4 {[%emt 0:02:55]} Bg6 {[%emt 0:03:48]} 14. O-O {[%emt 0:02:18]} O-O {[%emt 0:06:48]} 15. b4 {[%emt 0:04:09]} f5 {[%emt 0:20:25]} 16. f4 {[%emt 0:02:17]} Bf6 {[%emt 0:02:12]} 17. Rac1 {[%emt 0:01:57]} b6 {[%emt 0:11:39]} 18. Nc6 {[%emt 0:03:22]} h6 {[%emt 0:07:24]} 19. a4 {[%emt 0:07:51]} a5 {[%emt 0:08:10]} 20. bxa5 {[%emt 0:04:00]} bxa5 {[%emt 0:01:07]} 21. Rb1 {[%emt 0:02:44]} Bh7 {[%emt 0:02:56]} 22. Rb5 {[%emt 0:09:35]} exf4 {[%emt 0:02:58]} 23. Bxf4 {[%emt 0:00:19]} g5 {[%emt 0:00:07]} 24. Be3 {[%emt 0:02:35]} Nc5 {[%emt 0:03:06]} 25. Rxc5 {[%emt 0:11:54]} dxc5 {[%emt 0:00:10]} 26. Bxc5 {[%emt 0:00:07]} Rf7 {[%emt 0:01:48]} 27. Bf3 {[%emt 0:03:06]} Rc8 {[%emt 0:00:30]} 28. Rb1 {[%emt 0:12:31]} g4 {[%emt 0:02:11]} 29. d6 {[%emt 0:03:44]} Qd7 {[%emt 0:00:41]} 30. Rb7 {[%emt 0:00:43]} Qxb7 {[%emt 0:01:10]} 31. Ne7+ {[%emt 0:00:10]} Rxe7 {[%emt 0:00:17]} 32. Bxb7 {[%emt 0:00:22]} Rxb7 {[%emt 0:00:09]} 33. Qd5+ {[%emt 0:00:10]} Rf7 {[%emt 0:00:49]} 34. Bb6 {[%emt 0:02:13]} Rb8 {[%emt 0:01:56]} 35. c5 {[%emt 0:02:15]} f4 {[%emt 0:00:38]} 36. d7 {[%emt 0:01:10]} Kg7 {[%emt 0:00:40]} 37. d8=Q {[%emt 0:08:28]} Bxd8 {[%emt 0:00:19]} 38. Bxd8 {[%emt 0:00:43]} Rb1+ {[%emt 0:00:49]} 39. Kf2 {[%emt 0:00:05]} Bf5 {[%emt 0:00:16]} 40. Bxa5 {[%emt 0:01:00]} Rb2+ {[%emt 0:00:28]} 41. Bd2 {[%emt 0:01:09]} Rc2 {[%emt 0:00:34]} 42. Kg1 {[%emt 0:01:26]} Bg6 {[%emt 0:00:42]} 43. Qe5+ {[%emt 0:01:35]} Kh7 {[%emt 0:00:08]} 44. Bxf4 {[%emt 0:02:12]} Rb7 {[%emt 0:00:26]} 45. Qe1 {[%emt 0:03:50]} Rc4 {[%emt 0:00:32]} 46. Qe3 {[%emt 0:00:45]} Re4 {[%emt 0:00:54]} 47. Qd2 {[%emt 0:00:36]} Reb4 {[%emt 0:00:05]} 48. Be5 {[%emt 0:00:19]} Rc4 {[%emt 0:00:34]} 49. Qd5 {[%emt 0:00:47]} Rc1+ {[%emt 0:00:49]} 50. Kf2 {[%emt 0:00:03]} Rf7+ {[%emt 0:00:22]} 51. Kg3 {[%emt 0:00:05]} Re1 {[%emt 0:00:11]} 52. c6 {[%emt 0:01:24]} Re3+ {[%emt 0:00:59]} 53. Kh4 {[%emt 0:00:12]} g3 {[%emt 0:00:23]} 54. hxg3 {[%emt 0:01:27]} Rf1 {[%emt 0:00:31]} 55. c7 {[%emt 0:00:33]} Bf7 {[%emt 0:00:38]} 56. c8=Q {[%emt 0:00:58]} Bxd5 {[%emt 0:00:29]} 57. Qh8+ {[%emt 0:00:09]} Kg6 {[%emt 0:00:06]} 58. Qg7+ {[%emt 0:00:06]} Kf5 {[%emt 0:00:09]} 59. Qf6+ {[%emt 0:00:07]} Ke4 {[%emt 0:00:07]} 60. Qxf1 {[%emt 0:00:04]} 1-0

[Event "Djerba Festival Open-A 2024"]
[Site "Djerba"]
[Date "2024.02.24"]
[Round "8.3"]
[White "Travadon, Loic"]
[Black "Djabri, Massinas"]
[Result "1/2-1/2"]
[ECO "B86"]
[WhiteElo "2460"]
[BlackElo "2238"]
[Annotator "TA"]
[PlyCount "66"]
[EventDate "2024.02.18"]
[EventType "swiss"]
[EventCountry "TUN"]
[SourceTitle "playchess.com"]
[Source "ChessBase"]
[SourceQuality "1"]
[TimeControl "5400+30"]

{[%evp 17,66,0,0,0,32,20,44,43,62,53,51,22,27,40,44,37,26,-10,-16,-8,-4,-10,0,-36,-20,-16,-13,-14,-9,-8,-10,0,0,-44,-40,-45,-29,-33,-31,-22,-13,-20,-16,-37,-31,-40,-37,-25,-24,-29,-8]} 1. e4 {[%emt 0:00:03]} c5 {[%emt 0:02:06]} 2. Nf3 {[%emt 0:00:07]} d6 {[%emt 0:00:05]} 3. d4 {[%emt 0:00:24]} cxd4 {[%emt 0:00:05]} 4. Nxd4 {[%emt 0:00:06]} Nf6 {[%emt 0:00:04]} 5. Nc3 {[%emt 0:00:05]} a6 {[%emt 0:00:03]} 6. Bc4 {[%emt 0:01:39]} e6 {[%emt 0:00:08]} 7. Bb3 {[%emt 0:00:28]} Be7 {[%emt 0:01:12]} 8. Qf3 {[%emt 0:00:57]} Qc7 {[%emt 0:01:34]} 9. O-O {[%emt 0:01:11]} O-O {[%emt 0:01:32]} 10. Qg3 {[%emt 0:01:32]} Nc6 {[%emt 0:01:00]} 11. Nxc6 {[%emt 0:00:49]} Qxc6 {[%emt 0:01:10]} 12. Bh6 {[%emt 0:00:38] White is slightly better.} Nh5 {[%emt 0:06:46]} 13. Qg4 {[%emt 0:00:32] White is more active.} Qc5 {[%emt 0:00:14]} 14. Be3 {[%emt 0:00:29]} Nf6 $1 {[%emt 0:00:44][%cal Bh5f6,Bf6g4,Bg4e3][%mdl 32]} 15. Bxc5 {[%emt 0:05:42]} Nxg4 {[%emt 0:00:07]} 16. Ba3 {[%emt 0:00:07]} b5 {[%emt 0:05:24]} 17. f4 {[%emt 0:01:54] Prevents Ne5} Bd8 {[%emt 0:10:53] And now ...Bb6+ would win.} 18. h3 {[%emt 0:05:59]} Bb6+ {[%emt 0:00:15]} 19. Kh1 {[%emt 0:00:02]} Ne3 {[%emt 0:01:39]} 20. Rf3 {[%emt 0:00:07][%cal Oa1e1]} (20. Rfe1 $5) 20... Rd8 {[%emt 0:00:43] White should prevent ...a5.} (20... a5 $5 21. Bxd6 (21. Nxb5 a4 $15) 21... a4 22. Bxf8 Kxf8 23. Nxb5 axb3 24. cxb3 Ba6 $17) 21. Re1 {[%emt 0:00:36]} Nc4 {[%emt 0:00:17]} 22. Bxc4 {[%emt 0:00:10]} bxc4 {[%emt 0:00:04]} 23. Rd1 {[%emt 0:00:22] [#]} d5 $1 {[%emt 0:11:58]} 24. exd5 {[%emt 0:03:30]} Bb7 {[%emt 0:00:14]} 25. Rff1 {[%emt 0:02:26]} exd5 {[%emt 0:03:07]} 26. Na4 {[%emt 0:00:43]} Bc7 {[%emt 0:02:29]} 27. Bc5 {[%emt 0:00:42]} Bc6 {[%emt 0:00:32]} 28. Nc3 {[%emt 0:00:11]} Rab8 {[%emt 0:00:40]} 29. b3 {[%emt 0:00:43]} Ba5 {[%emt 0:02:46]} 30. Bd4 {[%emt 0:00:17]} Re8 {[%emt 0:01:52]} 31. Rfe1 {[%emt 0:06:04]} f6 {[%emt 0:00:31]} 32. Rxe8+ {[%emt 0:01:57]} Rxe8 {[%emt 0:00:09]} 33. Kg1 {[%emt 0:00:08]} Bxc3 {[%emt 0:02:17] Weighted Error Value: White=0.08 (flawless) /Black=0.06 (flawless) .  Inaccurate:     	White=4     	Black=1      OK:         	White=12    	Black=6      Best:        	White=2     	Black=2      Strong:       	---       	Black=1} 1/2-1/2

[Event "Djerba Festival Open-A 2024"]
[Site "Djerba"]
[Date "2024.02.24"]
[Round "8.4"]
[White "Araoune, Saadi"]
[Black "Abbes, Ali"]
[Result "0-1"]
[ECO "B38"]
[WhiteElo "2077"]
[BlackElo "2218"]
[Annotator "RC"]
[PlyCount "80"]
[EventDate "2024.02.18"]
[EventType "swiss"]
[EventCountry "TUN"]
[SourceTitle "playchess.com"]
[Source "ChessBase"]
[SourceQuality "1"]
[TimeControl "5400+30"]

1. d4 {[%emt 0:01:02]} Nf6 {[%emt 0:00:47]} 2. c4 {[%emt 0:00:04]} g6 {[%emt 0:00:09]} 3. Nc3 {[%emt 0:00:04]} Bg7 {[%emt 0:00:07]} 4. e4 {[%emt 0:00:04]} d6 {[%emt 0:00:10]} 5. Nf3 {[%emt 0:00:05]} O-O {[%emt 0:00:23]} 6. Be2 {[%emt 0:02:15]} c5 {[%emt 0:02:31]} 7. O-O cxd4 8. Nxd4 {[%emt 0:00:36]} Nc6 {[%emt 1:30:23]} 9. Be3 {[%emt 1:30:50]} Bd7 {[%emt 0:00:30]} 10. f3 {[%emt 0:00:00]} a6 {[%emt 0:00:00]} 11. Qd2 {[%emt 0:00:00]} Rc8 {[%emt 0:00:00]} 12. Rac1 {[%emt 0:01:30]} Re8 {[%emt 0:01:30]} 13. Rfd1 {[%emt 0:00:30]} Qa5 {[%emt 0:00:30]} 14. Nb3 {[%emt 0:00:00]} Qb4 {[%emt 0:00:00]} 15. Qc2 {[%emt 0:00:00]} Na5 {[%emt 0:00:00]} 16. Nxa5 {[%emt 0:00:00]} Qxa5 {[%emt 0:01:30]} 17. Qb3 {[%emt 0:00:00]} Qh5 {[%emt 0:00:00]} 18. Bf1 {[%emt 0:00:00]} Bh6 {[%emt 0:00:00]} 19. Nd5 {[%emt 0:00:00]} Nxd5 {[%emt 0:00:00]} 20. Rxd5 {[%emt 0:00:00]} Bxe3+ {[%emt 0:00:00]} 21. Qxe3 {[%emt 0:04:00]} Qh4 {[%emt 0:02:30]} 22. e5 {[%emt 0:00:30]} Bc6 {[%emt 0:00:30]} 23. Rd4 {[%emt 0:00:00]} Qh5 {[%emt 0:00:00]} 24. exd6 {[%emt 0:00:00]} exd6 {[%emt 0:01:00]} 25. Qd2 {[%emt 0:00:00]} Re6 {[%emt 0:00:30]} 26. b4 {[%emt 0:00:00]} Rce8 {[%emt 0:00:00]} 27. Rxd6 {[%emt 0:00:00]} Rxd6 {[%emt 0:00:00]} 28. Qxd6 {[%emt 0:00:00]} Bxf3 {[%emt 0:00:00]} 29. Rc3 {[%emt 0:00:00]} Be2 {[%emt 0:00:00]} 30. Qd5 {[%emt 0:00:00]} Qh4 {[%emt 0:00:00]} 31. Rc1 {[%emt 0:01:02]} Rd8 {[%emt 0:00:00]} 32. Qe5 {[%emt 0:01:22]} Bxf1 {[%emt 0:00:00]} 33. Kxf1 {[%emt 0:02:27]} h5 {[%emt 0:00:00]} 34. Kg1 {[%emt 0:00:36]} Rd2 {[%emt 0:00:00]} 35. Rf1 {[%emt 0:00:29]} Qxc4 {[%emt 0:00:00]} 36. Qe8+ {[%emt 0:00:23]} Kg7 {[%emt 0:00:00]} 37. Qe5+ {[%emt 0:00:37]} Kh7 {[%emt 0:00:00]} 38. Qe7 {[%emt 0:00:27]} Qd4+ {[%emt 0:00:00]} 39. Kh1 {[%emt 0:00:01]} Rf2 {[%emt 0:00:00]} 40. Rxf2 {[%emt 0:00:47]} Qd1+ {[%emt 0:00:00]} 0-1